fUSD/lending_fUSD_20250330
["ID","MTS","AMOUNT","RATE_DAILY","PERIOD"]
[356879670,1743360645928,-529.31,0.00056164,120]
[356879671,1743360645938,-28835.67,0.00056164,7]
[356879672,1743360645948,-415.60442372,0.00056164,120]
[356879673,1743360645957,-969.79,0.00056164,2]
[356879674,1743360645967,-500.0,0.00056164,120]
[356879675,1743360645976,-500.0,0.00056164,120]
[356879676,1743360645986,-512.9,0.00056164,120]
[356879677,1743360645996,-2004.26,0.00056164,2]
[356879678,1743360646006,-150.0,0.00056175,120]
[356879679,1743360646016,-150.0,0.00056185,120]
[356879680,1743360646026,-150.0,0.00056199,120]
[356879681,1743360646036,-150.0,0.0005626,120]
[356879682,1743360646045,-150.0,0.0005626,120]
[356879683,1743360646055,-1000.0,0.00056295,60]
[356879684,1743360646065,-150.0,0.00056321,120]
[356879685,1743360646075,-150.0,0.00056335,120]
[356879686,1743360646084,-150.0,0.00056345,120]
[356879687,1743360646094,-150.0,0.0005641,120]
[356879688,1743360646104,-150.0,0.00056437,120]
[356879689,1743360646114,-500.0,0.00056438,2]
[356879690,1743360646123,-500.0,0.00056438,30]
[356879691,1743360646132,-500.0,0.00056438,120]
[356879692,1743360646142,-500.0,0.00056438,120]
[356879693,1743360646152,-500.0,0.00056438,120]
[356879694,1743360646161,-1694.27,0.00056438,120]
[356879696,1743360646171,-796.43,0.00056438,7]
[356879697,1743360646180,-505.04733712,0.00056438,120]
[356879698,1743360646190,-835.03,0.00056438,120]
[356879699,1743360646199,-526.36,0.00056438,120]
[356879700,1743360646209,-1243.51,0.00056438,120]
[356879701,1743360646219,-529.31,0.00056438,120]
[356879702,1743360646228,-28835.67,0.00056438,7]
[356879703,1743360646238,-969.79,0.00056438,2]
[356879704,1743360646247,-500.0,0.00056438,120]
[356879705,1743360646257,-500.0,0.00056438,120]
[356879706,1743360646266,-512.9,0.00056438,120]
[356879707,1743360646276,-2004.26,0.00056438,2]
[356879708,1743360646285,-150.0,0.00056442,120]
[356879709,1743360646294,-150.0,0.00056485,120]
[356879710,1743360646303,-150.0,0.00056515,120]
[356879711,1743360646313,-500.0,0.00056534,120]
[356879712,1743360646322,-500.0,0.00056534,120]
[356879714,1743360646331,-213.61,0.00056534,120]
[356879715,1743360646341,-500.0,0.00056534,120]
[356879716,1743360646351,-500.0,0.00056534,120]
[356879717,1743360646360,-500.0,0.00056534,120]
[356879718,1743360646369,-500.0,0.00056534,120]
[356879719,1743360646378,-500.0,0.00056534,120]
[356879720,1743360646388,-500.0,0.00056534,120]
[356879721,1743360646397,-500.0,0.00056534,120]
[356879722,1743360646406,-500.0,0.00056534,120]
[356879723,1743360646415,-500.0,0.00056534,120]
[356879724,1743360646424,-500.0,0.00056534,120]
[356879725,1743360646434,-151.29,0.00056534,120]
[356879726,1743360646443,-150.0,0.0005656,120]
[356879727,1743360646452,-150.0,0.00056563,120]
[356879728,1743360646462,-1000.0,0.00056598,60]
[356879729,1743360646471,-1000.0,0.00056633,60]
[356879730,1743360646480,-150.0,0.00056635,120]
[356879731,1743360646489,-150.0,0.00056685,120]
[356879732,1743360646501,-150.0,0.00056685,120]
[356879733,1743360646511,-150.0,0.0005671,120]
[356879734,1743360646520,-500.0,0.00056712,2]
[356879735,1743360646530,-500.0,0.00056712,30]
[356879736,1743360646539,-500.0,0.00056712,120]
[356879737,1743360646554,-500.0,0.00056712,120]
[356879738,1743360646564,-500.0,0.00056712,120]
[356879739,1743360646573,-1694.27,0.00056712,120]
[356879740,1743360646583,-796.43,0.00056712,7]
[356879741,1743360646593,-835.03,0.00056712,120]
[356879742,1743360646603,-526.36,0.00056712,120]
[356879743,1743360646612,-1243.51,0.00056712,120]
[356879744,1743360646622,-529.31,0.00056712,120]
[356879745,1743360646631,-28835.67,0.00056712,7]
[356879746,1743360646641,-969.79,0.00056712,2]
[356879747,1743360646650,-500.0,0.00056712,120]
[356879748,1743360646659,-567.07088975,0.00056712,120]
[356879749,1743360646669,-512.9,0.00056712,120]
[356879750,1743360646678,-2004.26,0.00056712,2]
[356879751,1743360646687,-150.0,0.00056785,120]
[356879752,1743360646696,-2045.89,0.000568,60]
[356879753,1743360646707,-150.0,0.00056806,120]
[356879754,1743360646717,-1000.0,0.0005683,60]
[356879755,1743360646727,-300.0,0.00056837,60]
[356879756,1743360646736,-150.0,0.00056855,120]
[356879757,1743360646747,-150.0,0.0005686,120]
[356879758,1743360646757,-1000.0,0.00056879,60]
[356879759,1743360646766,-150.0,0.00056897,120]
[356879760,1743360646775,-150.0,0.00056927,120]
[356879761,1743360646785,-150.0,0.00056935,120]
[356879762,1743360646794,-1000.0,0.00056936,60]
[356879763,1743360646803,-501.42343041,0.00056962,60]
[356879764,1743360646812,-2688.78360374,0.00056963,119]
[356879765,1743360646822,-152.92839495,0.0005698,60]
[356879766,1743360646831,-500.0,0.00056986,2]
[356879767,1743360646841,-500.0,0.00056986,30]
[356879768,1743360646850,-500.0,0.00056986,120]
[356879769,1743360646859,-500.0,0.00056986,120]
[356879770,1743360646868,-500.0,0.00056986,120]
[356879771,1743360646878,-1694.27,0.00056986,120]
[356879772,1743360646887,-796.43,0.00056986,7]
[356879773,1743360646896,-835.03,0.00056986,120]
[356879774,1743360646906,-526.36,0.00056986,120]
[356879775,1743360646915,-1243.51,0.00056986,120]
[356879776,1743360646925,-529.31,0.00056986,120]
[356879777,1743360646934,-28835.67,0.00056986,7]
[356879778,1743360646944,-969.79,0.00056986,2]
[356879779,1743360646954,-500.0,0.00056986,120]
[356879780,1743360646964,-512.9,0.00056986,120]
[356879781,1743360646973,-2004.26,0.00056986,2]
[356879782,1743360646982,-250.0,0.00057,10]
[356879783,1743360646992,-250.0,0.00057,20]
[356879784,1743360647002,-150.0,0.00057009,120]
[356879785,1743360647011,-1000.0,0.0005702,60]
[356879786,1743360647020,-150.0,0.00057024,120]
[356879787,1743360647030,-150.0,0.00057049,120]
[356879788,1743360647039,-1000.0,0.00057063,60]
[356879789,1743360647049,-1000.0,0.00057074,60]
[356879790,1743360647059,-150.0,0.00057084,120]
[356879791,1743360647069,-2688.78360374,0.00057117,119]
[356879792,1743360647079,-1000.0,0.00057122,60]
[356879793,1743360647089,-150.0,0.00057159,120]
[356879794,1743360647099,-150.0,0.0005717,120]
[356879795,1743360647108,-150.0,0.00057194,120]
[356879796,1743360647118,-2688.78360374,0.00057196,119]
[356879797,1743360647128,-1000.0,0.00057208,60]
[356879798,1743360647137,-150.0,0.00057234,120]
[356879799,1743360647148,-2688.78360374,0.00057236,119]
[356879800,1743360647158,-154.91361423,0.00057257,60]
[356879801,1743360647167,-500.0,0.0005726,2]
[356879802,1743360647177,-500.0,0.0005726,30]
[356879803,1743360647187,-500.0,0.0005726,120]
[356879804,1743360647197,-500.0,0.0005726,120]
[356879805,1743360647207,-277.94966,0.0005726,120]
[356879806,1743360647216,-1694.27,0.0005726,120]
[356879807,1743360647226,-796.43,0.0005726,7]
[356879808,1743360647235,-835.03,0.0005726,120]
[356879809,1743360647244,-526.36,0.0005726,120]
[356879810,1743360647253,-1243.51,0.0005726,120]
[356879811,1743360647263,-529.31,0.0005726,120]
[356879812,1743360647272,-28835.67,0.0005726,7]
[356879813,1743360647281,-969.79,0.0005726,2]
[356879814,1743360647291,-500.0,0.0005726,120]
[356879815,1743360647300,-512.9,0.0005726,120]
[356879816,1743360647309,-2004.26,0.0005726,2]
[356879817,1743360647318,-1000.0,0.0005729,60]
[356879818,1743360647327,-150.0,0.00057291,120]
[356879819,1743360647337,-188.73641436,0.000573,120]
[356879820,1743360647346,-1000.0,0.00057305,60]
[356879821,1743360647356,-150.0,0.00057309,120]
[356879822,1743360647366,-1000.0,0.00057322,60]
[356879823,1743360647375,-1000.0,0.00057359,60]
[356879824,1743360647384,-150.0,0.00057364,120]
[356879825,1743360647394,-1000.0,0.00057366,60]
[356879826,1743360647403,-150.0,0.00057384,120]
[356879827,1743360647412,-1000.0,0.00057389,60]
[356879828,1743360647422,-150.0,0.00057413,120]
[356879829,1743360647431,-592.98789816,0.00057442,60]
[356879830,1743360647440,-1000.0,0.00057455,60]
[356879831,1743360647449,-150.0,0.00057459,120]
[356879832,1743360647458,-250.0,0.0005747,30]
[356879833,1743360647467,-1000.0,0.00057474,60]
[356879834,1743360647476,-1000.0,0.00057477,60]
[356879835,1743360647486,-1000.0,0.00057501,60]
[356879836,1743360647494,-1000.0,0.00057523,60]
[356879837,1743360647503,-1000.0,0.00057525,60]
[356879838,1743360647513,-500.0,0.00057534,2]
[356879839,1743360647522,-500.0,0.00057534,30]
[356879840,1743360647531,-150.0,0.00057534,120]
[356879841,1743360647540,-150.00000001,0.00057534,120]
[356879842,1743360647554,-500.0,0.00057534,120]
[356879843,1743360647563,-500.0,0.00057534,120]
[356879844,1743360647573,-150.0,0.00057534,120]
[356879845,1743360647582,-150.0,0.00057534,120]
[356879846,1743360647592,-2110.0,0.00057534,30]
[356879847,1743360647601,-1694.27,0.00057534,120]
[356879848,1743360647610,-796.43,0.00057534,7]
[356879849,1743360647619,-835.03,0.00057534,120]
[356879850,1743360647630,-526.36,0.00057534,120]
[356879851,1743360647640,-1243.51,0.00057534,120]
[356879852,1743360647649,-529.31,0.00057534,120]
[356879853,1743360647658,-28835.67,0.00057534,7]
[356879854,1743360647668,-969.79,0.00057534,2]
[356879855,1743360647677,-500.0,0.00057534,120]
[356879856,1743360647686,-512.9,0.00057534,120]
[356879857,1743360647696,-2004.26,0.00057534,2]
[356879858,1743360647705,-1163.6460418,0.00057651,2]
[356879859,1743360647714,-2000.0,0.0005769,45]
[356879860,1743360647723,-1704.09,0.000577,54]
[356879861,1743360647733,-500.0,0.00057808,120]
[356879862,1743360647743,-500.0,0.00057808,2]
[356879863,1743360647753,-541.38,0.00057808,120]
[356879864,1743360647763,-500.0,0.00057808,120]
[356879865,1743360647773,-500.0,0.00057808,30]
[356879866,1743360647782,-500.0,0.00057808,120]
[356879867,1743360647792,-500.0,0.00057808,120]
[356879868,1743360647801,-1694.27,0.00057808,120]
[356879869,1743360647811,-796.43,0.00057808,7]
[356879870,1743360647820,-835.03,0.00057808,120]
[356879871,1743360647829,-526.36,0.00057808,120]
[356879872,1743360647839,-1243.51,0.00057808,120]
[356879873,1743360647848,-529.31,0.00057808,120]
[356879874,1743360647858,-28835.67,0.00057808,7]
[356879875,1743360647866,-969.79,0.00057808,2]
[356879876,1743360647875,-500.0,0.00057808,120]
[356879877,1743360647885,-512.9,0.00057808,120]
[356879878,1743360647895,-2004.26,0.00057808,2]
[356879879,1743360647905,-2000.0,0.0005785,35]
[356879880,1743360647914,-3162.24337918,0.000579,30]
[356879881,1743360647923,-2124.0,0.000579,74]
[356879882,1743360647933,-172.0626204,0.000579,12]
[356879883,1743360647942,-660.8634696,0.000579,2]
[356879884,1743360647951,-150.78102148,0.000579,2]
[356879885,1743360647961,-160.84,0.00057918,2]
[356879886,1743360647970,-1163.6460418,0.0005796,2]
[356879887,1743360647980,-373.22071522,0.0005799,7]
[356879888,1743360647990,-1000.0,0.00057999,120]
[356879889,1743360647999,-150.0,0.00057999,120]
[356879890,1743360648009,-250.0,0.00058,10]
[356879891,1743360648019,-154.0,0.00058,120]
[356879892,1743360648028,-155.0,0.00058,120]
[356879893,1743360648038,-154.0,0.00058,120]
[356879894,1743360648047,-154.0,0.00058,120]
[356879895,1743360648057,-1000000.0,0.00058,120]
[356879896,1743360648067,-300.0,0.00058,120]
[356879897,1743360648077,-150.0,0.00058,120]
[356879898,1743360648087,-41070.6595259,0.00058,30]
[356879899,1743360648096,-151.0,0.00058,120]
[356879900,1743360648106,-151.0,0.00058,120]
[356879901,1743360648115,-151.0,0.00058,120]
[356879902,1743360648126,-151.0,0.00058,120]
[356879903,1743360648136,-218.546091,0.00058,120]
[356879904,1743360648145,-151.0,0.00058,120]
[356879905,1743360648155,-151.0,0.00058,120]
[356879906,1743360648165,-151.0,0.00058,120]
[356879907,1743360648175,-151.0,0.00058,120]
[356879908,1743360648184,-151.0,0.00058,110]
[356879909,1743360648195,-151.0,0.00058,120]
[356879910,1743360648204,-151.0,0.00058,120]
[356879911,1743360648242,-151.0,0.00058,120]
[356879912,1743360648252,-2785.057188,0.00058,120]
[356879913,1743360648262,-151.0,0.00058,120]
[356879914,1743360648271,-213.376873,0.00058,120]
[356879915,1743360648281,-151.0,0.00058,120]
[356879916,1743360648290,-151.0,0.00058,120]
[356879917,1743360648299,-151.0,0.00058,120]
[356879918,1743360648308,-328.069641,0.00058,120]
[356879919,1743360648318,-328.069641,0.00058,120]
[356879920,1743360648327,-445.209028,0.00058,120]
[356879921,1743360648336,-445.209028,0.00058,120]
[356879922,1743360648345,-151.0,0.00058,120]
[356879923,1743360648354,-151.0,0.00058,120]
[356879924,1743360648365,-151.0,0.00058,120]
[356879925,1743360648375,-373.96,0.00058034,30]
[356879926,1743360648385,-500.0,0.00058082,120]
[356879927,1743360648394,-500.0,0.00058082,2]
[356879928,1743360648404,-541.38,0.00058082,120]
[356879929,1743360648413,-500.0,0.00058082,120]
[356879930,1743360648423,-500.0,0.00058082,30]
[356879931,1743360648432,-500.0,0.00058082,120]
[356879932,1743360648441,-500.0,0.00058082,120]
[356879933,1743360648451,-1694.27,0.00058082,120]
[356879934,1743360648460,-796.43,0.00058082,7]
[356879935,1743360648471,-835.03,0.00058082,120]
[356879936,1743360648481,-526.36,0.00058082,120]
[356879937,1743360648490,-1243.51,0.00058082,120]
[356879938,1743360648500,-529.31,0.00058082,120]
[356879939,1743360648510,-28835.67,0.00058082,7]
[356879940,1743360648520,-969.79,0.00058082,2]
[356879941,1743360648529,-500.0,0.00058082,120]
[356879942,1743360648539,-512.9,0.00058082,120]
[356879943,1743360648552,-2004.26,0.00058082,2]
[356879944,1743360648562,-266.345545,0.0005835,120]
[356879945,1743360648572,-500.0,0.00058356,120]
[356879946,1743360648581,-500.0,0.00058356,2]
[356879947,1743360648591,-541.38,0.00058356,120]
[356879948,1743360648601,-500.0,0.00058356,120]
[356879949,1743360648611,-500.0,0.00058356,30]
[356879950,1743360648622,-500.0,0.00058356,120]
[356879951,1743360648632,-500.0,0.00058356,120]
[356879952,1743360648642,-1694.27,0.00058356,120]
[356879953,1743360648651,-796.43,0.00058356,7]
[356879954,1743360648661,-835.03,0.00058356,120]
[356879955,1743360648670,-526.36,0.00058356,120]
[356879956,1743360648680,-1243.51,0.00058356,120]
[356879957,1743360648690,-529.31,0.00058356,120]
[356879958,1743360648700,-28835.67,0.00058356,7]
[356879959,1743360648709,-969.79,0.00058356,2]
[356879960,1743360648719,-500.0,0.00058356,120]
[356879961,1743360648728,-512.9,0.00058356,120]
[356879962,1743360648738,-2004.26,0.00058356,2]
[356879963,1743360648747,-154.939068,0.00058383,120]
[356879964,1743360648757,-250.0,0.000584,120]
[356879965,1743360648766,-250.0,0.000584,120]
[356879966,1743360648776,-250.0,0.000584,120]
[356879967,1743360648785,-250.0,0.000584,120]
[356879968,1743360648795,-250.0,0.000584,120]
[356879969,1743360648805,-250.0,0.000584,120]
[356879970,1743360648815,-250.0,0.000584,120]
[356879971,1743360648824,-250.0,0.000584,120]
[356879972,1743360648833,-250.0,0.000584,120]
[356879973,1743360648843,-250.0,0.000584,120]
[356879974,1743360648853,-250.0,0.000584,120]
[356879975,1743360648862,-250.0,0.000584,120]
[356879976,1743360648875,-250.0,0.000584,120]
[356879977,1743360648885,-250.0,0.000584,120]
[356879978,1743360648895,-271.5,0.000584,120]
[356879979,1743360648905,-2000.0,0.0005844,30]
[356879980,1743360648916,-2045.89,0.000585,60]
[356879981,1743360648925,-151.0,0.00058603,120]
[356879982,1743360648935,-2401.16153223,0.00058608,15]
[356879983,1743360648945,-500.0,0.0005863,120]
[356879984,1743360648955,-500.0,0.0005863,2]
[356879985,1743360648966,-541.38,0.0005863,120]
[356879986,1743360648976,-500.0,0.0005863,120]
[356879987,1743360648986,-500.0,0.0005863,30]
[356879988,1743360648998,-500.0,0.0005863,120]
[356879989,1743360649008,-500.0,0.0005863,120]
[356879990,1743360649019,-1694.27,0.0005863,120]
[356879991,1743360649029,-796.43,0.0005863,7]
[356879992,1743360649039,-835.03,0.0005863,120]
[356879993,1743360649049,-526.36,0.0005863,120]
[356879994,1743360649060,-1243.51,0.0005863,120]
[356879995,1743360649070,-529.31,0.0005863,120]
[356879996,1743360649080,-28835.67,0.0005863,7]
[356879997,1743360649090,-969.79,0.0005863,2]
[356879998,1743360649101,-500.0,0.0005863,120]
[356879999,1743360649111,-512.9,0.0005863,120]
[356880000,1743360649121,-2004.26,0.0005863,2]
[356880001,1743360649132,-500.0,0.00058904,120]
[356880002,1743360649143,-500.0,0.00058904,2]
[356880003,1743360649154,-541.38,0.00058904,120]
[356880004,1743360649164,-500.0,0.00058904,120]
[356880005,1743360649176,-500.0,0.00058904,30]
[356880006,1743360649186,-500.0,0.00058904,120]
[356880007,1743360649196,-500.0,0.00058904,120]
[356880008,1743360649206,-1694.27,0.00058904,120]
[356880009,1743360649216,-796.43,0.00058904,7]
[356880010,1743360649226,-835.03,0.00058904,120]
[356880011,1743360649236,-526.36,0.00058904,120]
[356880012,1743360649246,-1243.51,0.00058904,120]
[356880013,1743360649256,-529.31,0.00058904,120]
[356880014,1743360649266,-28835.67,0.00058904,7]
[356880015,1743360649277,-969.79,0.00058904,2]
[356880016,1743360649287,-500.0,0.00058904,120]
[356880017,1743360649297,-512.9,0.00058904,120]
[356880018,1743360649307,-2004.26,0.00058904,2]
[356880019,1743360649317,-266.345545,0.0005891,60]
[356880020,1743360649327,-1163.6460418,0.0005896,2]
[356880021,1743360649337,-1000.0,0.00058999,120]
[356880022,1743360649347,-250.0,0.00059,10]
[356880023,1743360649357,-324631.03037841,0.00059,120]
[356880024,1743360649430,-20371.4689924,0.00059,120]
[356880025,1743360649441,-1549.26945387,0.00059,120]
[356880026,1743360649454,-1294.80855547,0.00059,120]
[356880027,1743360649466,-958.2345619,0.00059,120]
[356880028,1743360649477,-272.64249718,0.00059,120]
[356880029,1743360649683,-167922.54556077,0.00059,120]
[356880030,1743360649693,-5085.02960275,0.00059,120]
[356880031,1743360649703,-151.0,0.00059,120]
[356880032,1743360649711,-151.0,0.00059,120]
[356880033,1743360649720,-151.0,0.00059,120]
[356880034,1743360649729,-151.0,0.00059,120]
[356880035,1743360649738,-168.038707,0.00059,120]
[356880036,1743360649748,-151.0,0.00059,120]
[356880037,1743360649757,-151.0,0.00059,120]
[356880038,1743360649767,-151.506452,0.00059,120]
[356880039,1743360649777,-151.0,0.00059,120]
[356880040,1743360649787,-151.0,0.00059,110]
[356880041,1743360649797,-151.0,0.00059,120]
[356880042,1743360649807,-225.108148,0.00059,120]
[356880043,1743360649817,-151.0,0.00059,120]
[356880044,1743360649827,-2785.057188,0.00059,120]
[356880045,1743360649836,-151.0,0.00059,120]
[356880046,1743360649846,-151.0,0.00059,120]
[356880047,1743360649857,-151.0,0.00059,120]
[356880048,1743360649866,-151.0,0.00059,120]
[356880049,1743360649876,-328.069641,0.00059,120]
[356880050,1743360649886,-328.069641,0.00059,120]
[356880051,1743360649895,-445.209028,0.00059,120]
[356880052,1743360649905,-445.209028,0.00059,120]
[356880053,1743360649915,-151.0,0.00059,120]
[356880054,1743360649925,-151.0,0.00059,120]
[356880055,1743360649935,-151.0,0.00059,120]
[356880056,1743360649944,-570.99093899,0.0005909,2]
[356880057,1743360649955,-500.0,0.00059178,120]
[356880058,1743360649965,-500.0,0.00059178,2]
[356880059,1743360649975,-541.38,0.00059178,120]
[356880060,1743360649985,-500.0,0.00059178,120]
[356880061,1743360649996,-500.0,0.00059178,30]
[356880062,1743360650006,-500.0,0.00059178,120]
[356880063,1743360650016,-500.0,0.00059178,120]
[356880064,1743360650026,-1694.27,0.00059178,120]
[356880065,1743360650036,-796.43,0.00059178,7]
[356880066,1743360650045,-835.03,0.00059178,120]
[356880067,1743360650055,-526.36,0.00059178,120]
[356880068,1743360650066,-1243.51,0.00059178,120]
[356880069,1743360650075,-529.31,0.00059178,120]
[356880070,1743360650085,-28835.67,0.00059178,7]
[356880071,1743360650095,-969.79,0.00059178,2]
[356880072,1743360650105,-500.0,0.00059178,120]
[356880073,1743360650115,-512.9,0.00059178,120]
[356880074,1743360650124,-2004.26,0.00059178,2]
[356880075,1743360650135,-500.0,0.00059452,120]
[356880076,1743360650144,-500.0,0.00059452,2]
[356880077,1743360650154,-541.38,0.00059452,120]
[356880078,1743360650164,-500.0,0.00059452,120]
[356880079,1743360650174,-500.0,0.00059452,30]
[356880080,1743360650184,-329.10604327,0.00059452,120]
[356880081,1743360650194,-500.0,0.00059452,120]
[356880082,1743360650204,-1694.27,0.00059452,120]
[356880083,1743360650214,-796.43,0.00059452,7]
[356880084,1743360650224,-835.03,0.00059452,120]
[356880085,1743360650234,-526.36,0.00059452,120]
[356880086,1743360650244,-1110.27412216,0.00059452,120]
[356880087,1743360650299,-133.23587784,0.00059452,120]
[356880088,1743360650308,-529.31,0.00059452,120]
[356880089,1743360650318,-21972.18272697,0.00059452,7]
[356880090,1743360650330,-3197.54513101,0.00059452,7]
[356880091,1743360650341,-3665.94214202,0.00059452,7]
[356880092,1743360650351,-969.79,0.00059452,2]
[356880093,1743360650360,-500.0,0.00059452,120]
[356880094,1743360650370,-512.9,0.00059452,120]
[356880095,1743360650379,-2004.26,0.00059452,2]
[356880096,1743360650389,-266.345553,0.0005955,120]
[356880097,1743360650398,-177.563696,0.0005955,120]
[356880098,1743360650408,-154.939069,0.0005955,120]
[356880099,1743360650418,-177.563697,0.0005955,120]
[356880100,1743360650427,-154.939068,0.0005962,60]
[356880101,1743360650437,-266.345545,0.00059633,120]
[356880102,1743360650446,-227.91714986,0.000597,57]
[356880103,1743360652070,-510.33824361,0.000597,57]
[356880104,1743360652082,-113.77460653,0.000597,57]
[356880105,1743360652092,-240.84196071,0.00059726,120]
[356880106,1743360652101,-483.86343276,0.00059726,120]
[356880107,1743360652175,-150.0,0.00051155,10]
[356880108,1743360652184,-500.0,0.00054794,120]
[356880109,1743360652194,-185.3652444,0.00054794,120]
[356880110,1743360652208,-333.14272196,0.00054794,120]
[356880111,1743360652218,-1885.51248912,0.000573,25]
[356880112,1743360652250,-624.48751088,0.000573,25]
[356880113,1743360652260,-57.51656724,0.00059726,120]
[356880114,1743360652269,-174.39810043,0.00059726,30]
[356880115,1743360652278,-500.0,0.00059726,120]
[356880116,1743360652288,-383.75782145,0.00059726,120]
[356880117,1743360726301,-212.98324344,0.000149,2]
[356880118,1743360728881,-212.98324344,0.000149,2]
[356880119,1743360735659,206.91606742,0.000148,2]
[356880120,1743360735687,4198.18636467,0.000148,2]
[356880121,1743360735708,2300.11556791,0.000148,2]
[356880122,1743360781768,-150.0,0.000149,2]
[356880137,1743361832133,-2510.60206527,0.000149,2]
[356880138,1743361832187,-1502.63633473,0.000149,2]
[356880139,1743361832198,-350.0,0.000151,3]
[356880140,1743361832208,-223.84589477,0.0001639,3]
[356880141,1743361832347,-126.15410523,0.0001639,3]
[356880142,1743361832358,-350.0,0.00018759,3]
[356880143,1743361832369,-271.34,0.00026849,2]
[356880144,1743361832380,-219.996,0.0002739,16]
[356880145,1743361832390,-443.417,0.0002739,16]
[356880146,1743361832400,-271.34,0.00032646,2]
[356880147,1743361832409,-830.44022321,0.000372,103]
[356880148,1743361832419,-830.44022321,0.000372,103]
[356880149,1743361832429,-271.34,0.00038443,2]
[356880150,1743361832439,-271.34,0.00044239,2]
[356880151,1743361832449,-203.50104425,0.00048042,82]
[356880152,1743361832506,-239.91595575,0.00048042,82]
[356880153,1743361832516,-500.0,0.00048773,10]
[356880154,1743361832526,-529.27346203,0.0004879,2]
[356880155,1743361832536,-574.83545523,0.00048799,120]
[356880156,1743361832546,-264.0,0.00048799,4]
[356880157,1743361832557,-9553.23208851,0.000488,120]
[356880177,1743361838067,-84207.70208812,0.000488,120]
[356880178,1743361838077,-5027.0,0.00049,2]
[356880179,1743361838087,-20478.33,0.0005,120]
[356880180,1743361838097,-271.34,0.00050036,2]
[356880181,1743361838107,-250.0,0.00050356,120]
[356880182,1743361838116,-9403.12,0.00050644,2]
[356880183,1743361838125,-200.0,0.00050878,2]
[356880184,1743361838135,-515.0,0.00051404,30]
[356880185,1743361838144,-500.0,0.00051503,120]
[356880186,1743361838154,-500.0,0.00051503,120]
[356880187,1743361838167,-500.0,0.00051503,120]
[356880188,1743361838176,-500.0,0.00051503,120]
[356880189,1743361838186,-191.48648836,0.00051503,120]
[356880190,1743361838196,-16050.28,0.00051504,2]
[356880191,1743361838206,-515.0,0.00051934,30]
[356880192,1743361838215,-1189.16,0.00052061,2]
[356880193,1743361838225,-165.34,0.00052148,2]
[356880194,1743361838235,-161.4,0.00052337,2]
[356880195,1743361838245,-515.0,0.00052464,30]
[356880196,1743361838254,-161.4,0.0005248,2]
[356880197,1743361838264,-161.4,0.00052622,2]
[356880198,1743361838273,-23900.0,0.00052645,2]
[356880199,1743361838282,-929.94051464,0.00052665,15]
[356880200,1743361838292,-161.4,0.00052765,2]
[356880201,1743361838302,-161.4,0.00052908,2]
[356880202,1743361838312,-515.0,0.00052994,30]
[356880203,1743361838322,-239.47008694,0.00052994,30]
[356880204,1743361838331,-161.4,0.00053051,2]